fUSD/lending_fUSD_20240905
["ID","MTS","AMOUNT","RATE_DAILY","PERIOD"]
[337236182,1725519068005,-528.2,0.00014999,2]
[337236183,1725519068015,-737.72,0.00014999,2]
[337236184,1725519068025,-508.28,0.00014999,2]
[337236185,1725519068035,-1636.9,0.00014999,2]
[337236186,1725519068045,-528.2,0.00014999,2]
[337236187,1725519068055,-508.28,0.00014999,2]
[337236188,1725519068064,-1006.89,0.00014999,2]
[337236189,1725519068074,-528.2,0.00014999,2]
[337236190,1725519068085,-508.28,0.00014999,2]
[337236191,1725519068094,-737.72,0.00014999,2]
[337236192,1725519068104,-1006.89,0.00014999,2]
[337236193,1725519068114,-1636.90667082,0.00014999,2]
[337236194,1725519068124,-508.28,0.00014999,2]
[337236195,1725519068133,-528.2,0.00014999,2]
[337236196,1725519068143,-737.72,0.00014999,2]
[337236197,1725519068153,-508.35105332,0.00014999,2]
[337236198,1725519068162,-528.2,0.00014999,2]
[337236199,1725519068171,-1006.89,0.00014999,2]
[337236200,1725519068181,-737.72,0.00014999,2]
[337236201,1725519068191,-528.2,0.00014999,2]
[337236202,1725519068201,-1006.89,0.00014999,2]
[337236203,1725519068211,-737.72,0.00014999,2]
[337236204,1725519068221,-528.35,0.00014999,2]
[337236205,1725519068231,-1006.89,0.00014999,2]
[337236206,1725519068241,-737.72,0.00014999,2]
[337236207,1725519068251,-737.72,0.00014999,2]
[337236208,1725519068261,-1006.89,0.00014999,2]
[337236209,1725519068271,-737.72,0.00014999,2]
[337236210,1725519068280,-1006.89,0.00014999,2]
[337236211,1725519068290,-737.72,0.00014999,2]
[337236212,1725519068300,-1006.89,0.00014999,2]
[337236213,1725519068309,-737.72,0.00014999,2]
[337236214,1725519068367,-1006.89,0.00014999,2]
[337236215,1725519068377,-737.72,0.00014999,2]
[337236216,1725519068386,-1006.89,0.00014999,2]
[337236217,1725519068395,-737.72,0.00014999,2]
[337236218,1725519068405,-1006.89,0.00014999,2]
[337236219,1725519068414,-737.72,0.00014999,2]
[337236220,1725519068423,-1006.89,0.00014999,2]
[337236221,1725519068433,-737.72,0.00014999,2]
[337236222,1725519068442,-1006.89,0.00014999,2]
[337236223,1725519068452,-737.72,0.00014999,2]
[337236224,1725519068461,-1006.89,0.00014999,2]
[337236225,1725519068471,-737.72,0.00014999,2]
[337236226,1725519068480,-1006.89,0.00014999,2]
[337236227,1725519068489,-737.72,0.00014999,2]
[337236228,1725519068498,-1006.89,0.00014999,2]
[337236229,1725519068509,-737.72,0.00014999,2]
[337236230,1725519068519,-1006.89,0.00014999,2]
[337236231,1725519068528,-737.85415704,0.00014999,2]
[337236232,1725519068538,-1006.89,0.00014999,2]
[337236233,1725519068547,-1006.89,0.00014999,2]
[337236234,1725519068556,-1006.89,0.00014999,2]
[337236235,1725519068566,-1006.89,0.00014999,2]
[337236236,1725519068575,-1006.89,0.00014999,2]
[337236237,1725519068584,-1006.89,0.00014999,2]
[337236238,1725519068593,-1006.95479318,0.00014999,2]
[337236239,1725519068603,-744.0,0.00015,2]
[337236240,1725519068612,-1549.114,0.00015,2]
[337236241,1725519068621,-626.92,0.00015,2]
[337236242,1725519068631,-1263.287,0.00015,2]
[337236243,1725519068640,-449.629,0.00015,2]
[337236244,1725519068649,-933.203,0.00015,2]
[337236245,1725519068659,-1144.0,0.00015,2]
[337236246,1725519068670,-7239.348,0.00015,2]
[337236247,1725519068679,-517685.96297359,0.00015,2]
[337236248,1725519069143,-500.0,0.00014987,2]
[337236249,1725519069153,-1277.7292,0.00014998,2]
[337236250,1725519069164,-127.0808,0.00014998,2]
[337236251,1725519069174,-343.90021019,0.00014998,2]
[337236252,1725519069189,-1060.90978981,0.00014998,2]
[337236253,1725519069198,-1404.81,0.00014999,2]
[337236254,1725519069208,-677.57521019,0.00014999,2]
[337236255,1725519069381,-422.04,0.000142,2]
[337236256,1725519069390,-500.0,0.00014988,2]
[337236257,1725519069399,-271.49471778,0.00014997,2]
[337236258,1725519069658,-228.50528222,0.00014997,2]
[337236259,1725519069667,-500.0,0.00014997,2]
[337236260,1725519069677,-500.0,0.00014997,2]
[337236261,1725519069686,-500.0,0.00014997,2]
[337236262,1725519069695,-203.64131722,0.00014998,2]
[337236263,1725519069705,-727.23478981,0.00014999,2]
[337236264,1725519069715,-1404.81,0.00014999,2]
[337236265,1725519069724,-1404.81,0.00014999,2]
[337236266,1725519069733,-1404.81,0.00014999,2]
[337236267,1725519069743,-1404.81,0.00014999,2]
[337236268,1725519069752,-1404.81,0.00014999,2]
[337236269,1725519069764,-1404.81,0.00014999,2]
[337236270,1725519069773,-1404.81,0.00014999,2]
[337236271,1725519069782,-1404.81,0.00014999,2]
[337236272,1725519069792,-1404.81,0.00014999,2]
[337236273,1725519069801,-1404.98943119,0.00014999,2]
[337236274,1725519069811,-5680.60679697,0.00015,2]
[337236275,1725519069823,-22917.63626334,0.00015,2]
[337236276,1725519069834,-25045.80084554,0.00015,2]
[337236277,1725519089464,-500.0,0.00014999,2]
[337236278,1725519089473,-433.203,0.00014999,2]
[337236279,1725519089485,-66.797,0.00014999,2]
[337236280,1725519089494,-500.0,0.00014999,2]
[337236281,1725519089503,-500.0,0.00014999,2]
[337236282,1725519089512,-480.90644508,0.00015,2]
[337236283,1725519089526,-3518.04920049,0.00015,2]
[337236284,1725519089541,-500.0,0.00014999,2]
[337236285,1725519089550,-8187.30435728,0.00015,2]
[337236287,1725519359499,200.0,0.00027,120]
[337236292,1725519687024,250.54,0.00010959,2]
[337236294,1725519726385,550.0,0.00011,2]
[337236295,1725519818481,-419.874113,0.00015,30]
[337236296,1725519818536,-419.6335458,0.00019178,30]
[337236297,1725519818581,-419.6335458,0.0001926,30]
[337236298,1725519818622,-419.6335458,0.00019342,30]
[337236299,1725519818856,-419.6335458,0.00019425,30]
[337236300,1725519818900,-419.6335458,0.00019507,30]
[337236301,1725519818944,-419.6335458,0.00019589,30]
[337236302,1725519818986,-419.6335458,0.00019671,30]
[337236303,1725519819028,-419.6335458,0.00019753,30]
[337236304,1725519819071,-419.6335458,0.00019836,30]
[337236305,1725519819119,-673.43,0.000199,31]
[337236306,1725519819163,-673.43,0.000199,31]
[337236307,1725519819208,-673.43,0.000199,31]
[337236308,1725519819252,-673.43,0.000199,31]
[337236309,1725519819295,-673.43,0.000199,31]
[337236310,1725519819345,-673.43,0.000199,31]
[337236311,1725519819395,-673.43,0.000199,31]
[337236312,1725519819444,-673.43,0.000199,31]
[337236313,1725519819491,-673.43,0.000199,31]
[337236314,1725519819536,-673.43,0.000199,31]
[337236315,1725519819583,-673.43,0.000199,31]
[337236316,1725519819627,-673.43,0.000199,31]
[337236317,1725519819671,-673.43,0.000199,31]
[337236318,1725519819716,-673.43,0.000199,31]
[337236319,1725519819763,-673.43,0.000199,31]
[337236320,1725519819814,-673.43,0.000199,31]
[337236321,1725519819856,-419.6335458,0.00019918,30]
[337236322,1725519819898,-1501.21466759,0.0002,30]
[337236323,1725519819938,-1337.69279803,0.0002,30]
[337236324,1725519819978,-419.6335458,0.0002,30]
[337236325,1725519820021,-419.6335458,0.00020082,30]
[337236326,1725519820061,-419.6335458,0.00020137,30]
[337236327,1725519820101,-419.6335458,0.00020219,30]
[337236328,1725519820145,-419.6335458,0.00020301,30]
[337236329,1725519820187,-2628.15390219,0.00020919,40]
[337236330,1725519820228,-252.84661782,0.00021,30]
[337236331,1725519820274,-1000.0,0.00021918,30]
[337236332,1725519820322,-638.68966168,0.00022,30]
[337236333,1725519820363,-250.0,0.00022,30]
[337236334,1725519820405,-1000.0,0.0002206,30]
[337236335,1725519820445,-1000.0,0.00022202,30]
[337236336,1725519820485,-1000.0,0.00022345,30]
[337236337,1725519820523,-1000.0,0.00022487,30]
[337236338,1725519820561,-1000.0,0.00022629,30]
[337236339,1725519820599,-1000.0,0.00022772,30]
[337236340,1725519820636,-1000.0,0.00022914,30]
[337236341,1725519820675,-1400.03856835,0.00023,30]
[337236342,1725519820713,-250.0,0.00023,30]
[337236343,1725519820753,-250.0,0.00023,30]
[337236344,1725519820792,-1000.0,0.00023056,30]
[337236345,1725519820833,-1000.0,0.00023199,30]
[337236346,1725519820881,-673.43,0.000233,31]
[337236347,1725519820921,-673.43,0.000233,31]
[337236348,1725519820963,-673.43,0.000233,31]
[337236349,1725519821004,-673.43,0.000233,31]
[337236350,1725519821046,-673.43,0.000233,31]
[337236351,1725519821092,-673.43,0.000233,31]
[337236352,1725519821136,-673.43,0.000233,31]
[337236353,1725519821180,-673.43,0.000233,31]
[337236354,1725519821227,-673.43,0.000233,31]
[337236355,1725519821272,-673.43,0.000233,31]
[337236356,1725519821317,-673.43,0.000233,31]
[337236357,1725519821363,-673.43,0.000233,31]
[337236358,1725519821407,-673.43,0.000233,31]
[337236359,1725519821452,-673.43,0.000233,31]
[337236360,1725519821495,-673.43,0.000233,31]
[337236361,1725519821537,-673.43,0.000233,31]
[337236362,1725519821582,-673.43,0.000233,31]
[337236363,1725519821624,-673.43,0.000233,31]
[337236364,1725519821665,-673.43,0.000233,31]
[337236365,1725519821708,-673.43,0.000233,31]
[337236366,1725519821751,-673.43,0.000233,31]
[337236367,1725519821792,-673.43,0.000233,31]
[337236368,1725519821835,-673.43,0.000233,31]
[337236369,1725519821877,-673.43,0.000233,31]
[337236370,1725519821916,-1000.0,0.00023341,30]
[337236371,1725519821957,-1000.0,0.00023483,30]
[337236372,1725519821995,-1000.0,0.00023626,30]
[337236373,1725519822034,-1000.0,0.00023768,30]
[337236374,1725519822073,-1000.0,0.0002391,30]
[337236375,1725519822118,-1000.0,0.00024053,30]
[337236376,1725519822159,-1000.0,0.00024195,30]
[337236377,1725519822201,-1388.56,0.00024329,30]
[337236378,1725519822240,-1000.0,0.00024337,30]
[337236379,1725519822282,-1000.0,0.0002448,30]
[337236380,1725519822326,-1000.0,0.00024622,30]
[337236381,1725519822369,-561.79,0.00024657,30]
[337236382,1725519822410,-561.79,0.00024657,30]
[337236383,1725519822450,-561.79,0.00024657,30]
[337236384,1725519822491,-561.79,0.00024657,30]
[337236385,1725519822533,-561.79,0.00024657,30]
[337236386,1725519822576,-561.79,0.00024657,30]
[337236387,1725519822616,-561.79,0.00024657,30]
[337236388,1725519822657,-561.79,0.00024657,30]
[337236389,1725519822695,-561.79,0.00024657,30]
[337236390,1725519822735,-561.79,0.00024657,30]
[337236391,1725519822774,-561.79,0.00024657,30]
[337236392,1725519822813,-561.79,0.00024657,30]
[337236393,1725519822852,-561.79,0.00024657,30]
[337236394,1725519822890,-561.79,0.00024657,30]
[337236395,1725519822930,-561.79,0.00024657,30]
[337236396,1725519822968,-561.79,0.00024657,30]
[337236397,1725519823007,-561.79,0.00024657,30]
[337236398,1725519823046,-561.79,0.00024657,30]
[337236399,1725519823085,-561.79,0.00024657,30]
[337236400,1725519823267,-561.79,0.00024657,30]
[337236401,1725519823309,-561.79,0.00024657,30]
[337236402,1725519823348,-561.79,0.00024657,30]
[337236403,1725519823387,-561.79,0.00024657,30]
[337236404,1725519823425,-561.98860304,0.00024657,30]
[337236405,1725519823467,-1000.0,0.00024764,30]
[337236406,1725519823507,-333.83,0.000248,30]
[337236407,1725519823551,-1000.0,0.00024907,30]
[337236408,1725519823596,-2100.0,0.00025,30]
[337236409,1725519823639,-2828.51238721,0.00025,30]
[337236410,1725519823682,-400.0,0.00025,30]
[337236411,1725519823724,-427.82268066,0.00025,30]
[337236412,1725519823768,-1000.0,0.00025049,30]
[337236413,1725519823810,-1000.0,0.00025191,30]
[337236414,1725519823852,-1000.0,0.00025334,30]
[337236415,1725519823895,-1000.0,0.00025476,30]
[337236416,1725519823936,-1000.0,0.00025618,30]
[337236417,1725519823978,-1000.0,0.00025761,30]
[337236418,1725519824019,-1000.0,0.00025903,30]
[337236419,1725519824060,-800.0,0.00026,60]
[337236420,1725519824112,-718.90982655,0.00026,30]
[337236421,1725519824159,-3000.0,0.00026,30]
[337236422,1725519824200,-500.0,0.00026,30]
[337236423,1725519824244,-1000.0,0.00026045,30]
[337236424,1725519824290,-1000.0,0.00026188,30]
[337236425,1725519824335,-1000.0,0.0002633,30]
[337236426,1725519824378,-1000.0,0.00026472,30]
[337236427,1725519824420,-1000.0,0.00026614,30]
[337236428,1725519824466,-673.43,0.000267,31]
[337236429,1725519824509,-673.43,0.000267,31]
[337236430,1725519824551,-673.43,0.000267,31]
[337236431,1725519824594,-673.43,0.000267,31]
[337236432,1725519824635,-673.43,0.000267,31]
[337236433,1725519824679,-673.43,0.000267,31]
[337236434,1725519824722,-673.43,0.000267,31]
[337236435,1725519824768,-673.43,0.000267,31]
[337236436,1725519824817,-673.43,0.000267,31]
[337236437,1725519824861,-673.43,0.000267,31]
[337236438,1725519824905,-673.43,0.000267,31]
[337236439,1725519824952,-673.43,0.000267,31]
[337236440,1725519824996,-673.43,0.000267,31]
[337236441,1725519825043,-673.43,0.000267,31]
[337236442,1725519825091,-673.43,0.000267,31]
[337236443,1725519825139,-673.43,0.000267,31]
[337236444,1725519825185,-673.43,0.000267,31]
[337236445,1725519825229,-673.43,0.000267,31]
[337236446,1725519825274,-673.43,0.000267,31]
[337236447,1725519825321,-673.43,0.000267,31]
[337236448,1725519825369,-673.43,0.000267,31]
[337236449,1725519825416,-673.43,0.000267,31]
[337236450,1725519825461,-673.43,0.000267,31]
[337236451,1725519825505,-673.43,0.000267,31]
[337236452,1725519825544,-1000.0,0.00026757,30]
[337236453,1725519825583,-600.0,0.00026849,30]
[337236454,1725519825622,-600.0,0.00026849,30]
[337236455,1725519825661,-600.0,0.00026849,30]
[337236456,1725519825701,-600.0,0.00026849,30]
[337236457,1725519825741,-600.0,0.00026849,30]
[337236458,1725519825784,-600.0,0.00026849,30]
[337236459,1725519825828,-600.0,0.00026849,30]
[337236460,1725519825876,-600.0,0.00026849,30]
[337236461,1725519825923,-600.0,0.00026849,30]
[337236462,1725519825970,-600.0,0.00026849,30]
[337236463,1725519826014,-600.0,0.00026849,30]
[337236464,1725519826062,-600.0,0.00026849,30]
[337236465,1725519826105,-600.0,0.00026849,30]
[337236466,1725519826152,-600.0,0.00026849,30]
[337236467,1725519826194,-600.0,0.00026849,30]
[337236468,1725519826233,-600.0,0.00026849,30]
[337236469,1725519826274,-400.0,0.00026849,30]
[337236470,1725519826315,-1000.0,0.00026899,30]
[337236471,1725519826361,-200.0,0.00027,30]
[337236472,1725519826401,-3100.0,0.00027,30]
[337236473,1725519826463,-1000.0,0.00027041,30]
[337236474,1725519826504,-1000.0,0.00027184,30]
[337236475,1725519826542,-1000.0,0.00027326,30]
[337236476,1725519826586,-1531.04199133,0.0002736,120]
[337236477,1725519826626,-2000.0,0.00027397,30]
[337236478,1725519826667,-2000.0,0.00027397,30]
[337236479,1725519826708,-2000.0,0.00027397,30]
[337236480,1725519826752,-2000.0,0.00027397,30]
[337236481,1725519826796,-2000.0,0.00027397,30]
[337236482,1725519826845,-2000.0,0.00027397,30]
[337236483,1725519826886,-2000.0,0.00027397,30]
[337236484,1725519826926,-2000.0,0.00027397,30]
[337236485,1725519826966,-2000.0,0.00027397,30]
[337236486,1725519827007,-2000.0,0.00027397,30]
[337236487,1725519827049,-2000.0,0.00027397,30]
[337236488,1725519827102,-2000.0,0.00027397,30]
[337236489,1725519827149,-2000.0,0.00027397,30]
[337236490,1725519827194,-2000.0,0.00027397,30]
[337236491,1725519827237,-2000.0,0.00027397,30]
[337236492,1725519827282,-2000.0,0.00027397,30]
[337236493,1725519827327,-2000.0,0.00027397,30]
[337236494,1725519827371,-2000.0,0.00027397,30]
[337236495,1725519827417,-2000.0,0.00027397,30]
[337236496,1725519827464,-997.85570607,0.00027397,30]
[337236497,1725519827511,-200.0,0.00027397,60]
[337236498,1725519827559,-1000.0,0.00027468,30]
[337236499,1725519827601,-1388.56,0.0002749,30]
[337236500,1725519827645,-1000.0,0.00027611,30]
[337236501,1725519827690,-1000.0,0.00027753,30]
[337236502,1725519827733,-1000.0,0.00027895,30]
[337236503,1725519827930,-1000.0,0.00028038,30]
[337236504,1725519827973,-1000.0,0.0002818,30]
[337236505,1725519828015,-1341.98077606,0.00028297,120]
[337236506,1725519828057,-1000.0,0.00028322,30]
[337236507,1725519828100,-1000.0,0.00028465,30]
[337236508,1725519828151,-1000.0,0.00028607,30]
[337236509,1725519828193,-1000.0,0.00028749,30]
[337236510,1725519828236,-1000.0,0.00028892,30]
[337236511,1725519828280,-1800.0,0.00029,30]
[337236512,1725519828323,-1000.0,0.00029034,30]
[337236513,1725519828363,-1000.0,0.00029176,30]
[337236514,1725519828404,-1000.0,0.00029319,30]
[337236515,1725519828444,-1000.0,0.00029461,30]
[337236516,1725519828484,-1000.0,0.00029478,31]
[337236517,1725519828522,-1000.0,0.00029603,30]
[337236518,1725519828563,-150.0,0.00029655,120]
[337236519,1725519828602,-150.0,0.00029714,120]
[337236520,1725519828642,-1000.0,0.00029746,30]
[337236521,1725519828684,-1000.0,0.00029888,30]
[337236522,1725519828731,-150.0,0.00029949,120]
[337236523,1725519828776,-150.0,0.00029968,120]
[337236524,1725519828821,-150.0,0.00029981,120]
[337236525,1725519828866,-150.0,0.00029984,120]
[337236526,1725519828907,-1160.46726975,0.00029999,30]
[337236527,1725519828953,-151.0,0.0003,120]
[337236528,1725519828996,-1300.0,0.0003,120]
[337236529,1725519829038,-151.0,0.0003,120]
[337236530,1725519829080,-5000.0,0.0003,30]
[337236531,1725519829123,-2000.0,0.0003,120]
[337236532,1725519829164,-1800.0,0.0003,31]
[337236533,1725519829204,-200.0,0.0003,120]
[337236534,1725519829245,-6846.11577923,0.0003,120]
[337236535,1725519829284,-500.0,0.0003,120]
[337236536,1725519829326,-3000.21128823,0.0003,30]
[337236537,1725519829367,-284.11495573,0.0003,30]
[337236538,1725519829409,-1000.0,0.0003003,30]
[337236539,1725519829450,-150.0,0.00030046,120]
[337236540,1725519829494,-673.43,0.000301,31]
[337236541,1725519829537,-673.43,0.000301,31]
[337236542,1725519829580,-673.43,0.000301,31]
[337236543,1725519829623,-673.43,0.000301,31]
[337236544,1725519829668,-673.43,0.000301,31]
[337236545,1725519829712,-673.43,0.000301,31]
[337236546,1725519829756,-673.43,0.000301,31]
[337236547,1725519829801,-673.43,0.000301,31]
[337236548,1725519829856,-673.43,0.000301,31]
[337236549,1725519829900,-673.43,0.000301,31]
[337236550,1725519829945,-673.43,0.000301,31]
[337236551,1725519829988,-673.43,0.000301,31]
[337236552,1725519830033,-673.43,0.000301,31]
[337236553,1725519830076,-673.43,0.000301,31]
[337236554,1725519830125,-673.43,0.000301,31]
[337236555,1725519830168,-673.43,0.000301,31]
[337236556,1725519830211,-673.43,0.000301,31]
[337236557,1725519830255,-673.43,0.000301,31]
[337236558,1725519830300,-673.43,0.000301,31]
[337236559,1725519830347,-673.43,0.000301,31]
[337236560,1725519830393,-673.43,0.000301,31]
[337236561,1725519830437,-673.43,0.000301,31]
[337236562,1725519830483,-673.43,0.000301,31]
[337236563,1725519830526,-673.43,0.000301,31]
[337236564,1725519830569,-200.0,0.00030137,60]
[337236565,1725519830610,-1000.0,0.00030173,30]
[337236566,1725519830650,-150.0,0.00030194,120]
[337236567,1725519830689,-1000.0,0.00030315,30]
[337236568,1725519830730,-2110.0,0.00030409,30]
[337236569,1725519830770,-406.551,0.00030437,30]
[337236570,1725519830810,-1000.0,0.00030457,30]
[337236571,1725519830851,-1000.0,0.000306,30]
[337236572,1725519830891,-150.0,0.0003061,120]
[337236573,1725519830932,-548.0,0.00030613,30]
[337236574,1725519830972,-1388.56,0.00030651,30]
[337236575,1725519831012,-1000.0,0.00030742,30]
[337236576,1725519831051,-250.0,0.000308,30]
[337236577,1725519831093,-150.0,0.0003088,120]
[337236578,1725519831134,-1000.0,0.00030884,30]
[337236579,1725519831179,-1547876.47,0.00030908,30]
[337236580,1725519831220,-2168.96,0.00030909,30]
[337236581,1725519831280,-1800.0,0.00031,32]
[337236582,1725519831321,-1000.0,0.00031027,30]
[337236583,1725519831363,-151.0,0.00031123,120]
[337236584,1725519831403,-1000.0,0.00031169,30]
[337236585,1725519831445,-1000.0,0.00031311,30]
[337236586,1725519831486,-1000.0,0.00031453,30]
[337236587,1725519831528,-1000.0,0.00031596,30]
[337236588,1725519831574,-173.73,0.00031644,91]
[337236589,1725519831616,-150.0,0.00031692,120]
[337236590,1725519831657,-1000.0,0.00031738,30]
[337236591,1725519831699,-1000.0,0.0003188,30]
[337236592,1725519831741,-150.0,0.00031941,120]
[337236593,1725519831781,-2000.0,0.00032,120]
[337236594,1725519831821,-1800.0,0.00032,33]
[337236595,1725519831860,-1000.0,0.00032023,30]
[337236596,1725519831899,-1000.0,0.00032165,30]
[337236597,1725519831939,-150.0,0.00032221,120]
[337236598,1725519831976,-151.0,0.00032247,120]
[337236599,1725519832014,-1000.0,0.00032307,30]
[337236600,1725519832054,-1000.0,0.0003245,30]
[337236601,1725519832095,-1000.0,0.00032592,30]
[337236602,1725519832138,-2735.0,0.000327,35]
[337236603,1725519832176,-1000.0,0.00032734,30]
[337236604,1725519832219,-150.0,0.00032846,120]
[337236605,1725519832403,-500.0,0.00032876,120]
[337236606,1725519832445,-500.0,0.00032876,120]
[337236607,1725519832485,-500.0,0.00032876,120]
[337236608,1725519832526,-500.0,0.00032876,120]
[337236609,1725519832565,-500.0,0.00032876,120]
[337236610,1725519832605,-500.0,0.00032876,120]
[337236611,1725519832645,-500.0,0.00032876,120]
[337236612,1725519832684,-280.53380746,0.00032876,120]
[337236613,1725519832726,-200.0,0.00032877,60]
[337236614,1725519832765,-4000.0,0.00032877,30]
[337236615,1725519832805,-1096.70253155,0.00032877,30]
[337236616,1725519832846,-161.05168894,0.00033,120]
[337236617,1725519832886,-693.0,0.00033,88]
[337236618,1725519832929,-1800.0,0.00033,34]
[337236619,1725519832969,-442.84422039,0.00033,90]
[337236620,1725519833012,-150.0,0.0003302,120]
[337236621,1725519833056,-7824.95,0.00033151,120]
[337236622,1725519833097,-150.0,0.00033165,120]
[337236623,1725519833143,-150.0,0.00033202,120]
[337236624,1725519833186,-150.0,0.00033328,120]
[337236625,1725519833234,-151.0,0.0003337,120]
[337236626,1725519833282,-673.43,0.000335,31]
[337236627,1725519833335,-673.43,0.000335,31]
[337236628,1725519833387,-673.43,0.000335,31]
[337236629,1725519833436,-673.43,0.000335,31]
[337236630,1725519833485,-673.43,0.000335,31]
[337236631,1725519833533,-673.43,0.000335,31]
[337236632,1725519833577,-673.43,0.000335,31]
[337236633,1725519833623,-673.43,0.000335,31]
[337236634,1725519833666,-673.43,0.000335,31]
[337236635,1725519833712,-673.43,0.000335,31]
[337236636,1725519833756,-673.43,0.000335,31]
[337236637,1725519833802,-673.43,0.000335,31]
[337236638,1725519833846,-150.0,0.00033531,120]
[337236639,1725519833889,-768.0,0.00033674,30]
[337236640,1725519833932,-1388.56,0.00033812,120]
[337236641,1725519833975,-150.0,0.00033867,120]
[337236642,1725519834017,-1200.0,0.00034,120]
[337236643,1725519834064,-1801.46386915,0.00034,120]
[337236644,1725519834109,-2044.31850628,0.00034,30]
[337236645,1725519834162,-2605.21456155,0.00034,120]
[337236646,1725519834208,-2000.0,0.00034,120]
[337236647,1725519834252,-1800.0,0.00034,35]
[337236648,1725519834299,-150.0,0.00034051,120]
[337236649,1725519834343,-150.0,0.0003408,120]
[337236650,1725519834387,-150.0,0.00034254,120]
[337236651,1725519834431,-151.0,0.00034493,120]
[337236652,1725519834474,-150.0,0.00034635,120]
[337236653,1725519834517,-150.0,0.0003466,120]
[337236654,1725519834559,-40000.0,0.000347,120]
[337236655,1725519834600,-150.0,0.00034795,120]
[337236656,1725519834644,-150.0,0.00034827,120]
[337236657,1725519834685,-1488.88861835,0.00035,60]
[337236658,1725519834725,-785.64,0.00035,120]
[337236659,1725519834766,-200.0,0.00035,120]
[337236660,1725519834806,-4937.70539074,0.00035,60]
[337236661,1725519834847,-1800.0,0.00035,36]
[337236662,1725519834888,-413.0,0.00035,120]
[337236663,1725519834929,-150.0,0.00035,30]
[337236664,1725519834970,-155.724846,0.00035,30]
[337236665,1725519835010,-155.724846,0.00035,30]
[337236666,1725519835051,-1700.0,0.00035,120]
[337236667,1725519835092,-2027.0,0.00035,60]
[337236668,1725519835134,-3044.5687111,0.00035,60]
[337236669,1725519835176,-150.0,0.00035612,120]
[337236670,1725519835217,-200.0,0.00035616,60]
[337236671,1725519835257,-151.0,0.00035616,120]
[337236672,1725519835298,-150.0,0.00035892,120]
[337236673,1725519835340,-150.0,0.00035922,120]
[337236674,1725519835382,-2000.0,0.00036,30]
[337236675,1725519835424,-151.0,0.00036,120]
[337236676,1725519835464,-2000.0,0.00036,120]
[337236677,1725519835502,-150.0,0.0003611,30]
[337236678,1725519835542,-3008.5,0.00036114,54]
[337236679,1725519835581,-150.0,0.00036252,120]
[337236680,1725519835622,-150.0,0.00036254,120]
[337236681,1725519835663,-150.0,0.00036448,120]
[337236682,1725519835702,-150.0,0.00036548,120]
[337236683,1725519835742,-150.0,0.00036648,120]
[337236684,1725519835786,-150.0,0.00036678,120]
[337236685,1725519835827,-151.0,0.0003674,120]
[337236686,1725519835868,-150.0,0.00036748,120]
[337236687,1725519835907,-150.0,0.00036848,120]